Cogmind - Beta 11 X5 @@@ ROGUE MODE // 2021.06.28 @ 14:48:06 Player: Terminus Result: Destroyed by S5-PFW(g) with Beamcaster Performance ------------- Evolutions (0) 0 Regions Visited (2) 400 Robots Destroyed (30) 150 Value Destroyed (622) 622 Prototype IDs (0) 0 Alien Tech Used (0) 0 Bonus (28) 28 TOTAL SCORE: 1200 Bonus ------- Follower Combat Kills 28 Cogmind --------- Core Integrity 0/250 Matter 300/300 Energy 250/250 System Corruption 0% Temperature Cool (9) Movement Walking (200) Ox1 Location -10/Mines Parts ------- > --- POWER (1) -------- Ion Engine > --- PROPULSION (2) --- Aluminum Leg Aluminum Leg > --- UTILITY (2) ------ Heat Sink Large Storage Unit > --- WEAPON (2) ------- Light Cannon Light Cannon > --- INVENTORY (15) --- Ion Engine Ion Engine Aluminum Leg Aluminum Leg Heat Sink Heat Sink High-capacity Storage Unit High-capacity Matter Pod (200) Medium Laser Light Cannon Light Cannon Light Cannon Light Cannon Light Cannon Light Cannon Peak State ------------ > --- POWER ------------ Ion Engine > --- PROPULSION ------- Aluminum Leg Aluminum Leg > --- UTILITY ---------- Heat Sink Large Storage Unit > --- WEAPON ----------- Medium Laser Light Assault Rifle > --- INVENTORY -------- Ion Engine Ion Engine Aluminum Leg Aluminum Leg Aluminum Leg Heat Sink High-capacity Storage Unit Small Laser Small Laser Small Laser [Rating: 8] Favorites ----------- Power Ion Engine Engine Ion Engine Propulsion Aluminum Leg Leg Aluminum Leg Utility Heat Sink Device Heat Sink Storage Large Storage Unit Weapon Light Cannon Energy Gun Medium Laser Ballistic Gun Light Assault Rifle Ballistic Cannon Light Cannon Build | -11 -10 -10 ------- Run | Scr Mat Min Slots Evolved . | . . . Power . | . . . Propulsion . | . . . Utility . | . . . Weapon . | . . . Parts Attached 24 | 6 18 . Power 3 | 1 2 . Engine 3 | 1 2 . Core . | . . . Reactor . | . . . Propulsion 11 | 2 9 . Treads . | . . . Leg 11 | 2 9 . Wheel . | . . . Hover . | . . . Flight . | . . . Utility 3 | 1 2 . Device 1 | . 1 . Storage 2 | 1 1 . Processor . | . . . Hackware . | . . . Protection . | . . . Artifact . | . . . Weapon 7 | 2 5 . Energy Gun 1 | . 1 . Energy Cannon . | . . . Ballistic Gun 4 | 2 2 . Ballistic Cannon 2 | . 2 . Launcher . | . . . Special Weapon . | . . . Impact Weapon . | . . . Slashing Weapon . | . . . Piercing Weapon . | . . . Special Melee Weapon . | . . . Unidentified Prototypes . | . . . Parts Lost 2 | . 2 . Power . | . . . Propulsion . | . . . Utility . | . . . Weapon 2 | . 2 . Highest Loss Streak 1 | . 1 . Average Slot Usage (%) 99 | . 99 100 Engine 14 | . 14 14 Leg 28 | . 28 28 Device 13 | . 13 14 Storage 14 | . 14 14 Energy Gun 5 | . 7 . Ballistic Gun 7 | . 10 . Ballistic Cannon 14 | . 9 28 Naked Turns . | . . . Heaviest Build 32 | 13 32 32 Greatest Support 20 | 20 20 20 Greatest Overweight (x) 2 | 2 1 1 Average Overweight (x) . | . . 1 Largest Inventory Capacity 15 | 8 15 15 Average Capacity 13 | 6 12 15 Most Carried 15 | 2 15 15 Average Carried 11 | 1 10 14 Final Capacity 15 | 8 15 15 Final Carried 15 | 2 15 15 Class Distribution -------------------- 75% | Scavenger-Mutant 24% | Mutant Dominant Class ---------------- Scavenger-Mutant | -10/Materials Scavenger-Mutant | -10/Mines Resources | -11 -10 -10 ----------- Run | Scr Mat Min Matter Collected 748 | 184 455 109 Remotely . | . . . Salvage Created 1025 | . 966 59 Parts 61 | . 50 11 Haulers Intercepted 2 | . 2 . Recyclers Shooed 3 | . 2 1 Parts Field Recycled . | . . . Retrieved Matter . | . . . Parts Self-Destructed . | . . . Prevented . | . . . Kills | -11 -10 -10 ------- Run | Scr Mat Min Combat Hostiles Destroyed 23 | . 16 7 Guns 14 | . 14 . Cannons 9 | . 2 7 Classes Destroyed 6 | . 6 . Hauler 2 | . 2 . Recycler 3 | . 3 . Operator 1 | . 1 . Watcher 1 | . 1 . Swarmer 10 | . 3 7 Grunt 13 | . 13 . Best Kill Streak 5 | . 3 5 Combat Bots Only 5 | . 3 5 Max Kills in Single Turn 1 | . 1 1 Gunslinging . | . . . Exploded . | . . . Melee . | . . . Uniques/NPCs Destroyed . | . . . Combat | -11 -10 -10 -------- Run | Scr Mat Min Damage Taken 936 | . 667 269 Core 250 | . 175 75 Absorbed by Shields . | . . . Core Remaining (%) 100 | 100 . . Volleys Fired 94 | . 80 14 Largest 2 | . 2 2 Hottest 70 | . 70 70 Shots Fired 187 | . 159 28 Gun 149 | . 149 . Cannon 38 | . 10 28 Launcher . | . . . Special . | . . . Kinetic 126 | . 98 28 Thermal 61 | . 61 . Explosive . | . . . Electromagnetic . | . . . Robot Hit Streak 10 | . 10 4 Robot Miss Streak 3 | . 3 3 Penetration Max . | . . . Secondary Targets 3 | . 3 . Max Gunslinging Chain 1 | . 1 . Shots Hit Robots 124 | . 110 14 Core Hits 49 | . 41 8 Critical Kills . | . . . Critical Parts Destroyed 1 | . 1 . Critical Strikes 10 | . 9 1 Burn 7 | . 7 . Destroy 1 | . 1 . Blast 2 | . 1 1 Melee Attacks . | . . . Impact . | . . . Slashing . | . . . Piercing . | . . . Sneak Attacks . | . . . Combat Hostiles . | . . . Follow-up Attacks . | . . . Damage Inflicted 1556 | . 1292 264 Guns 1186 | . 1186 . Cannons 334 | . 81 253 Explosions . | . . . Melee . | . . . Ramming 36 | . 25 11 Kinetic 994 | . 741 253 Thermal 526 | . 526 . Explosive . | . . . Electromagnetic . | . . . Impact . | . . . Slashing . | . . . Piercing . | . . . Highest Corruption . | . . . Average Corruption . | . . . Corruption Purged . | . . . Overload Shots . | . . . Overflow Damage . | . . . Projectiles . | . . . Explosions . | . . . Melee . | . . . Knockbacks 9 | . 1 8 Impact . | . . . Kinetic 7 | . 1 6 Secondary 2 | . . 2 Self-Inflicted Damage . | . . . Shots . | . . . Rammed . | . . . Targets Rammed 12 | . 9 3 Kicked 12 | . 9 3 Crushed . | . . . Highest Temperature 45 | . 45 . Average Temperature 12 | . 12 . Received Heat Transfer 381 | . 372 9 Siege Activations . | . . . Robots Corrupted . | . . . Combat Hostiles . | . . . Parts Fried . | . . . Impact Corruptions . | . . . Robots Melted . | . . . Combat Hostiles . | . . . Parts Melted 1 | . 1 . Heat Transferred 2072 | . 2072 . Parts Sabotaged . | . . . Parts Stolen . | . . . Parts Stripped . | . . . Power Chain Reactions . | . . . Missiles Intercepted . | . . . Alert | -11 -10 -10 ------- Run | Scr Mat Min Peak Influence 320 | . 211 320 Initial 7 | . . 7 Average 111 | . 94 165 Maximum Alert Level 1 | . 1 1 Low Security (%) 85 | 100 95 57 Level 1 14 | . 4 42 Level 2 . | . . . Level 3 . | . . . Level 4 . | . . . Level 5 . | . . . High Security . | . . . Max Security . | . . . Squads Dispatched 4 | . 4 . Investigation 3 | . 3 . Extermination . | . . . Reinforcement 1 | . 1 . Assault . | . . . Garrison . | . . . Intercept . | . . . Construction Impeded . | . . . Haulers Reinforced . | . . . Cargo Convoy Interrupts . | . . . Stealth | -11 -10 -10 --------- Run | Scr Mat Min Distress Signals . | . . . Communications Jammed . | . . . Distress Signals . | . . . Times Spotted 50 | . 33 17 Peak Tracking Total 5 | . 4 5 Tactical Retreats 4 | . 1 3 Traps | -11 -10 -10 ------- Run | Scr Mat Min Traps Triggered 1 | . 1 . Indirectly . | . . . Trap Hack Attempts . | . . . Triggered . | . . . Disarmed 8 | . 8 . Reprogrammed . | . . . Reused . | . . . Traps Extracted . | . . . Installed . | . . . Triggered . | . . . Machines | -11 -10 -10 ---------- Run | Scr Mat Min Machines Disabled . | . . . Max in Single Turn . | . . . Machines Sabotaged . | . . . Garrisons Compromised . | . . . Overloaded Fab Kills . | . . . Fab Network Shutdowns . | . . . Hacking | -11 -10 -10 --------- Run | Scr Mat Min Machines Accessed 8 | . 8 . Terminals 6 | . 6 . Fabricators . | . . . Repair Stations . | . . . Recycling Units 2 | . 2 . Scanalyzers . | . . . Garrison Access . | . . . Total Hacks 28 | . 28 . Successful 22 | . 22 . Failed 6 | . 6 . Catastrophic 1 | . 1 . Database Lockouts . | . . . Manual 19 | . 19 . Terminals 26 | . 26 . Fabricators . | . . . Repair Stations . | . . . Recycling Units 2 | . 2 . Scanalyzers . | . . . Garrison Access . | . . . Terminal Hacks 16 | . 16 . Branch Access Points 1 | . 1 . Terminal Index 1 | . 1 . Fabricator Index 1 | . 1 . Alert Level 2 | . 2 . Unreport Threat 1 | . 1 . Locate Traps 1 | . 1 . Disarm Traps 4 | . 4 . Hauler Manifests 1 | . 1 . Zone Layout 4 | . 4 . Fabricator Hacks . | . . . Repair Station Hacks . | . . . Recycling Unit Hacks . | . . . Scanalyzer . | . . . Garrison Access Hacks . | . . . Unauthorized Hacks 6 | . 6 . Terminals 4 | . 4 . Assimilate 1 | . 1 . Botnet 3 | . 3 . Fabricators . | . . . Repair Stations . | . . . Recycling Units 2 | . 2 . Tunnel 2 | . 2 . Scanalyzers . | . . . Garrison Access . | . . . Data Cores Recovered . | . . . Used . | . . . Hacking Detections 5 | . 5 . Full Trace Events . | . . . Feedback Events . | . . . Feedback Blocked . | . . . Robot Schematics Acquired . | . . . Robots Built . | . . . Matter . | . . . Time . | . . . Total Robot Build Rating . | . . . Part Schematics Acquired . | . . . Parts Built . | . . . Matter . | . . . Time . | . . . Total Part Build Rating . | . . . Parts Repaired . | . . . Time . | . . . Parts Recycled . | . . . Recycled Matter . | . . . Retrieved Matter . | . . . Retrieved Components . | . . . Parts Scanalyzed . | . . . Part Schematics Acquired . | . . . Parts Damaged . | . . . Bothacking | -11 -10 -10 ------------ Run | Scr Mat Min Used RIF Installer . | . . . Robots Hacked . | . . . Non-combat . | . . . Combat . | . . . Robot Hacks Applied . | . . . Relay Couplers Released . | . . . Robots Rewired . | . . . Allies Hacked . | . . . Hacks Repelled . | . . . Allies | -11 -10 -10 -------- Run | Scr Mat Min Total Allies 3 | . 1 2 Largest Group 2 | . 1 2 Highest-Rated Group 47 | . 10 47 Highest-Rated Ally 31 | . 10 31 Total Orders . | . . . Ally Attacks 10 | . . 10 Total Damage 170 | . . 170 Kills 4 | . . 4 Allies Corrupted . | . . . Allies Melted . | . . . Intel | -11 -10 -10 ------- Run | Scr Mat Min Robot Analysis Total . | . . . Derelict Logs Recovered 1 | . . 1 Drone Launches . | . . . Drone Recoveries . | . . . Exploration | -11 -10 -10 ------------- Run | Scr Mat Min Turns Passed 2392 | 68 1658 666 Spaces Moved 1098 | 45 758 295 Core 18 | 18 . . Treads . | . . . Legs 1080 | 27 758 295 Wheels . | . . . Hover . | . . . Flight . | . . . Fastest Speed 50 | 50 120 200 Average Speed 175 | 127 168 200 Slowest Speed 200 | 150 200 200 Overloaded Moves . | . . . Propulsion Burnouts . | . . . Robots Hopped . | . . . Cave-ins Triggered . | . . . Exploration Rate (%) 56 | 5 98 65 Regions Visited 2 Branch Regions 1 Pre-discovered Areas 2 | . 2 . Known Exits Taken 1 | . 1 . Unknown Exits Taken 1 | 1 . . Scrap Searched . | . . . Spaces Dug . | . . . Terrain Destroyed . | . . . Melee . | . . . Projectile . | . . . AOE . | . . . Terrain Rammed . | . . . Walls Destroyed . | . . . Machines Disabled . | . . . Actions | -11 -10 -10 --------- Run | Scr Mat Min Total 1385 | 52 992 341 Wait 107 | . 80 27 Move 1096 | 44 757 295 Hop . | . . . Pick Up 27 | 2 24 1 Fast Attach 10 | 6 4 . Attach 1 | . 1 . Detach . | . . . Swap 13 | . 13 . Drop 25 | . 24 1 Fire 94 | . 80 14 Melee . | . . . Ram . | . . . Kick 12 | . 9 3 Crush . | . . . Escape Stasis . | . . . Rewire . | . . . Trap . | . . . Miscellaneous . | . . . Route ------- -11/Scrapyard -10/Materials (discovered 5 exits: [*Mat x3] / *Min x2) -10/Mines (discovered 1 exit: [*Mat]) History --------- Turn | Location | Event 10 | -11/Scrapyard | Discovered new exit (range 15) 69 | -11/Scrapyard | Entered Materials 292 | -10/Materials | Discovered new exit (range 15) 301 | -10/Materials | Build established: Mutant 408 | -10/Materials | Identified exit to Mines 673 | -10/Materials | Core integrity fell below 50% 779 | -10/Materials | Discovered new exit (range 22) 892 | -10/Materials | Build established: Scavenger-Mutant 904 | -10/Materials | Discovered new exit (range 3) 1224 | -10/Materials | Discovered new exit (range 15) 1727 | -10/Materials | Entered Mines 1833 | -10/Mines | Core integrity fell below 20% 2080 | -10/Mines | Discovered new exit (range 10) 2151 | -10/Mines | Learned Materials interactive machine intel 2393 | -10/Mines | Destroyed by S5-PFW(g) with Beamcaster Last Messages --------------- 01876_ Acquired 4 matter. 01878_ Acquired 2 matter. 02001_ A pair of derelicts emerge from the shadows: "We're, um, lost. You wouldn't happen to know the way out of here, would you?" 02080_ EXIT=FOUND 02085_ S-10 Pest destroyed. 02095_ Acquired 17 matter. 02099_ Acquired 16 matter. 02151_ Acquired derelict log, extracted data. Data stored: Materials interactive machine intel. 02197_ Extracted 11 matter. 02201_ Dropped Med. Laser. 02202_ Acquired Hcp. Matter Pod. 02291_ Kicked U-05 Engineer. 02313_ Kicked K-01 Serf out of the way. 02323_ S-10 Pest destroyed. 02336_ K-01 Serf collects debris. 02344_ K-01 Serf cleans the Matter Pump. 02352_ K-01 Serf collects debris. 02357_ K-01 Serf cleans the Matter Pump. Map ----- +----------------------------------------------------+ | ####?????????????????????????????????????????????? | | ##????????????????????????????????????????????? | | ###??????????????????????????????????????????? | | ##?????????????????????????????????????????? | | #?????????????????????????????????????????? | | #?????????????????????????????????????????? | | #?????????????????????????????????????????? | | ## ##?????????????????????????????????????????? | | #?####??????????????????????????????????????????? | | ###?????????????????????????????????????????????? | | ##????????????????????????????????????????????? | | #????????????????????????????????????????????? | | ##???????????????????????????????????????????? | | ## ##???????????????????????????????????????? | | #????????????????????????????????????? | | ## ## ?????????????????????????????????????? | | ##?# #???????????????????????????????????????? | | #???# ??????????????????????????????????????? | | ##??? ###?????????????????????????????????????? | | #???? #???????????????????????????????????????? | | #????? ??????????????????#????????????????????? | | ##??????????????????????? #????????????????????? | | ###????????????????????????z#????????????????????? | | ??????????????????????????s #????????????????????? | | ?????????????????????##### ##???????????????????? | | ????????????????????## @ ##??????????????????? | | ???????????????????## g #??????????????????? | | ??????????????????## ### #?????????????????? | | ??????????????????# ##??# #????????????????? | | ??????????????????# #????# #???????????????? | | ######???????????## #?????# #???????????????? | | #?????####### ##??????# #??????????????? | | ####### ##????????# #??????????????? | | ## """ ##??????????# #?????????????? | | ## """ ##??????????? #????????????? | | ########### """ ##??????????? #????????????? | | #?????????# =%* #???????????? #????????????? | | #????????## ### ##??????????????????????????? | | #????????# ##?#%##???????????????????????????? | | ##???????# ##??# #????????????????????????????? | | #???????# #???# #????????????????????????????? | | ????????# ???# #################????????????? | | ???????# #??# % #????????????? | | ??????# #??################# #???###??????? | | ?????# #??????????????????# #?## ###????? | | #???# #??????????????????# #?# ##???? | | #???# ##??????????????????# #?# """ #???? | | #???## ########????????????????### ### """ #???? | | ####?#### ###??????????????# """ #???? | | ##???# ! ! ##????????###### ##???? | +----------------------------------------------------+ Best States ------------- Heat Dissipation 35 Energy Generation 10 Energy Capacity 250 Matter Stores 300 Matter Capacity 300 Sight Range 16 Terrain Scan Density 10 Evasion (%) 55 Item Schematics ----------------- None Robot Schematics ------------------ None Fabricated ------------ Nothing Alien Tech Used ----------------- None Achievements -------------- None Challenges ------------ None Game ------ Seed SniperPrecisionFirepult Manual? 0 Play Time 00:10:32 Cumulative 1297.9 hours Start 2021.06.28 @ 14:38:57 End 2021.06.28 @ 14:48:06 Sessions 1 Manual Loads 0 Difficulty Rogue Special Mode None Game No. 440 Rogue 440 Adventurer 0 Explorer 0 Win Type - Total 94 Types 20/12/37/5/1/2/15/1/1 Lore% 97 Gallery% 96 Achievement% 85 Wizard Run 0 Options --------- ASCII 0 Keyboard 0 Movement Numpad Keybinds 0 Fullscreen 1 Font 18/SmallcapsGlow Map View 76x50 Tactical HUD 1 Map Filters NONE Filters NONE Steam 1 RUN: efd10f8b-5161-47ea-b66c-1a785d3655a2